[Event "2nd Cambridge Open 2024"]
[Site "Cambridge"]
[Date "2024.02.23"]
[Round "7.18"]
[White "Denderski, Piotr"]
[Black "Hanache, Kai"]
[Result "0-1"]
[ECO "E20"]
[WhiteElo "2137"]
[BlackElo "1926"]
[Annotator "RC"]
[PlyCount "50"]
[EventDate "2024.02.18"]
[EventType "swiss"]
[EventCountry "ENG"]
[SourceTitle "playchess.com"]
[Source "ChessBase"]
[SourceQuality "1"]
[TimeControl "5400+30"]

1. d4 {[%emt 0:00:02]} Nf6 {[%emt 0:00:08]} 2. c4 {[%emt 0:00:07]} e6 {[%emt 0:00:22]} 3. Nc3 {[%emt 0:00:06]} Bb4 {[%emt 0:00:09]} 4. f3 {[%emt 1:32:15]} O-O {[%emt 0:00:35]} 5. e4 {[%emt 0:00:00]} d5 {[%emt 0:01:39]} 6. e5 {[%emt 0:00:00]} Nfd7 {[%emt 0:00:19]} 7. a3 {[%emt 0:00:00]} Bxc3+ {[%emt 0:00:18]} 8. bxc3 {[%emt 0:00:00]} c5 {[%emt 0:00:57]} 9. Be3 {[%emt 0:00:00]} Nc6 {[%emt 0:01:51]} 10. Bd3 {[%emt 0:00:00]} dxc4 {[%emt 0:01:50]} 11. Bxc4 {[%emt 0:00:00]} Ndxe5 {[%emt 0:01:12]} 12. Ba2 {[%emt 0:00:00]} cxd4 {[%emt 0:01:15]} 13. cxd4 {[%emt 0:00:00]} Ng6 {[%emt 0:01:06]} 14. Ne2 {[%emt 0:00:00]} Qa5+ {[%emt 0:03:31]} 15. Kf2 {[%emt 0:00:00]} Qxa3 {[%emt 0:00:40]} 16. h4 {[%emt 0:00:00]} Nge7 {[%emt 0:07:37]} 17. g4 {[%emt 0:00:00]} Qd6 {[%emt 0:01:40]} 18. Bb1 {[%emt 0:00:00]} Nd5 {[%emt 0:02:28]} 19. Qd3 {[%emt 0:00:00]} f5 {[%emt 0:00:42]} 20. gxf5 {[%emt 0:00:00]} e5 {[%emt 0:03:50]} 21. f6 {[%emt 0:00:00]} Nxf6 {[%emt 0:03:46]} 22. d5 {[%emt 0:00:00]} e4 {[%emt 0:01:30]} 23. fxe4 {[%emt 0:00:00]} Nxe4+ {[%emt 0:02:20]} 24. Kg2 {[%emt 0:00:00]} Qg6+ {[%emt 0:00:02]} 25. Bg5 {[%emt 0:00:00]} Qf5 {[%emt 0:01:06]} 0-1

[Event "2nd Cambridge Open 2024"]
[Site "Cambridge"]
[Date "2024.02.23"]
[Round "7.19"]
[White "McLean, Robert"]
[Black "Martin, Lewis"]
[Result "1/2-1/2"]
[ECO "B12"]
[WhiteElo "1823"]
[BlackElo "2144"]
[Annotator "RC"]
[PlyCount "141"]
[EventDate "2024.02.18"]
[EventType "swiss"]
[EventCountry "ENG"]
[SourceTitle "playchess.com"]
[Source "ChessBase"]
[SourceQuality "1"]
[TimeControl "5400+30"]

1. e4 {[%emt 0:06:11]} c6 {[%emt 0:00:07]} 2. d4 {[%emt 0:00:27]} d5 {[%emt 0:00:04]} 3. e5 {[%emt 0:00:23]} Bf5 {[%emt 0:00:06]} 4. Nf3 {[%emt 0:00:28]} e6 {[%emt 0:00:07]} 5. Be2 {[%emt 0:00:08]} c5 {[%emt 0:00:12]} 6. c3 {[%emt 0:00:24]} Nc6 {[%emt 0:00:32]} 7. O-O {[%emt 0:00:21]} cxd4 {[%emt 0:03:35]} 8. Nxd4 {[%emt 0:00:19]} Nge7 {[%emt 0:02:38]} 9. Nd2 {[%emt 0:01:23]} Nxd4 {[%emt 0:03:45]} 10. cxd4 {[%emt 0:00:06]} Nc6 {[%emt 0:00:05]} 11. Nf3 {[%emt 0:09:42]} Be7 {[%emt 0:00:18]} 12. Be3 {[%emt 0:00:23]} O-O {[%emt 0:00:20]} 13. a3 {[%emt 0:02:14]} a5 {[%emt 0:04:56]} 14. Qa4 {[%emt 0:07:18]} Qb6 {[%emt 0:05:24]} 15. Qb5 {[%emt 0:00:28]} Qxb5 {[%emt 0:00:06]} 16. Bxb5 {[%emt 0:00:05]} Na7 {[%emt 0:02:22]} 17. Be2 {[%emt 0:00:40]} b5 {[%emt 0:14:21]} 18. Rfc1 {[%emt 0:01:19]} Rfc8 {[%emt 0:00:09]} 19. Nd2 {[%emt 0:03:02]} a4 {[%emt 0:02:37]} 20. g4 {[%emt 0:00:49]} Bc2 {[%emt 0:03:12]} 21. Nb1 {[%emt 0:03:24]} b4 {[%emt 0:02:02]} 22. axb4 {[%emt 0:01:59]} Bxb4 {[%emt 0:00:07]} 23. Na3 {[%emt 0:01:19]} Bxa3 {[%emt 0:09:36]} 24. bxa3 {[%emt 0:03:46]} Rab8 {[%emt 0:00:53]} 25. Ra2 {[%emt 0:02:17]} Bb3 {[%emt 0:00:30]} 26. Raa1 {[%emt 0:01:19]} Kf8 {[%emt 0:12:30]} 27. Rxc8+ {[%emt 0:01:53]} Rxc8 {[%emt 0:00:06]} 28. Rc1 {[%emt 0:00:07]} Rxc1+ {[%emt 0:08:06]} 29. Bxc1 {[%emt 0:00:04]} Bc4 {[%emt 0:01:22]} 30. Bd1 {[%emt 0:00:10]} Bb5 {[%emt 0:00:08]} 31. Bd2 {[%emt 0:00:42]} Nc6 {[%emt 0:01:10]} 32. Bc3 {[%emt 0:00:10]} g5 {[%emt 0:02:26]} 33. Kg2 {[%emt 0:02:05]} f6 {[%emt 0:02:28]} 34. exf6 {[%emt 0:00:36]} Kf7 {[%emt 0:00:08]} 35. Kg3 {[%emt 0:00:42]} Kxf6 {[%emt 0:00:07]} 36. f4 {[%emt 0:01:11]} gxf4+ {[%emt 0:00:48]} 37. Kxf4 {[%emt 0:00:07]} h6 {[%emt 0:02:51]} 38. h4 {[%emt 0:00:25]} Kg6 {[%emt 0:03:54]} 39. Bc2+ {[%emt 0:00:51]} Kf6 {[%emt 0:00:06]} 40. h5 {[%emt 0:00:56]} Ne7 {[%emt 0:05:13]} 41. Ba5 {[%emt 0:05:29]} Nc6 {[%emt 0:02:29]} 42. Bc7 {[%emt 0:00:53]} Kf7 {[%emt 0:00:31]} 43. Be5 {[%emt 0:05:24]} Nxe5 {[%emt 0:00:44]} 44. Kxe5 {[%emt 0:00:08]} Be2 {[%emt 0:00:35]} 45. Bxa4 {[%emt 0:00:31]} Bxg4 {[%emt 0:00:06]} 46. Bd7 {[%emt 0:00:09]} Ke7 {[%emt 0:00:23]} 47. Bc8 {[%emt 0:00:04]} Bxh5 {[%emt 0:00:40]} 48. Bxe6 {[%emt 0:00:06]} Bd1 {[%emt 0:00:42]} 49. Bxd5 {[%emt 0:00:10]} Kd7 {[%emt 0:01:45]} 50. Be6+ {[%emt 0:02:05]} Kc7 {[%emt 0:00:49]} 51. Bf5 {[%emt 0:00:29]} h5 {[%emt 0:02:12]} 52. d5 {[%emt 0:01:08]} h4 {[%emt 0:02:22]} 53. Bh3 {[%emt 0:00:58]} Bb3 {[%emt 0:01:02]} 54. d6+ {[%emt 0:00:47]} Kc6 {[%emt 0:00:06]} 55. Bg4 {[%emt 0:02:24]} Ba4 {[%emt 0:00:31]} 56. Ke6 {[%emt 0:00:35]} Kc5 {[%emt 0:00:39]} 57. Ke5 {[%emt 0:04:25]} Kb6 {[%emt 0:01:28]} 58. Bh3 {[%emt 0:04:00]} Bc6 {[%emt 0:00:34]} 59. Kf4 {[%emt 0:01:27]} Ba4 {[%emt 0:00:17]} 60. Ke4 {[%emt 0:03:46]} Kc6 {[%emt 0:00:49]} 61. Ke5 {[%emt 0:00:12]} Bb3 {[%emt 0:00:15]} 62. Bg2+ {[%emt 0:03:01]} Kd7 {[%emt 0:00:08]} 63. Bf1 {[%emt 0:00:46]} Ba4 {[%emt 0:00:13]} 64. Kd5 {[%emt 0:00:27]} Bc6+ {[%emt 0:01:52]} 65. Kc5 {[%emt 0:00:11]} Ba4 {[%emt 0:00:19]} 66. Bg2 {[%emt 0:02:28]} Kc8 {[%emt 0:00:21]} 67. Kb4 {[%emt 0:01:38]} Bd7 {[%emt 0:00:22]} 68. a4 {[%emt 0:00:11]} h3 {[%emt 0:00:09]} 69. Bf1 {[%emt 0:02:11]} h2 {[%emt 0:00:27]} 70. Bg2 {[%emt 0:00:05]} Bxa4 {[%emt 0:00:06]} 71. Kxa4 {[%emt 0:00:12]} 1/2-1/2

[Event "2nd Cambridge Open 2024"]
[Site "Cambridge"]
[Date "2024.02.23"]
[Round "7.20"]
[White "Jermy, Jaden"]
[Black "Okhai, Shabir"]
[Result "1-0"]
[ECO "E01"]
[WhiteElo "1968"]
[BlackElo "2114"]
[Annotator "RC"]
[PlyCount "101"]
[EventDate "2024.02.18"]
[EventType "swiss"]
[EventCountry "ENG"]
[SourceTitle "playchess.com"]
[Source "ChessBase"]
[SourceQuality "1"]
[TimeControl "5400+30"]

1. d4 {[%emt 0:00:02]} Nf6 {[%emt 0:01:58]} 2. Nf3 {[%emt 0:00:44]} e6 {[%emt 0:00:06]} 3. c4 {[%emt 0:00:27]} c5 {[%emt 0:00:10]} 4. g3 {[%emt 0:00:24]} cxd4 {[%emt 0:00:10]} 5. Nxd4 {[%emt 0:00:36]} d5 {[%emt 0:00:41]} 6. Bg2 {[%emt 0:01:13]} e5 {[%emt 0:00:43]} 7. Nc2 {[%emt 0:02:17]} d4 {[%emt 0:01:33]} 8. O-O {[%emt 0:00:19]} Nc6 {[%emt 0:04:38]} 9. Bg5 {[%emt 0:14:49]} Be7 {[%emt 0:01:23]} 10. e3 {[%emt 0:11:53]} Bg4 {[%emt 0:19:02]} 11. Qd3 {[%emt 0:07:45]} dxe3 {[%emt 0:22:02]} 12. Qxd8+ {[%emt 0:02:12]} Rxd8 {[%emt 0:00:01]} 13. Nxe3 {[%emt 0:00:02]} Be6 {[%emt 0:01:41]} 14. Nc3 {[%emt 0:03:54]} O-O {[%emt 0:01:52]} 15. h4 {[%emt 0:06:07]} h6 {[%emt 0:04:14]} 16. Bxf6 {[%emt 0:00:34]} Bxf6 {[%emt 0:00:01]} 17. Ncd5 {[%emt 0:01:14]} Be7 {[%emt 0:01:24]} 18. Nxe7+ {[%emt 0:00:32]} Nxe7 {[%emt 0:00:02]} 19. Rfd1 {[%emt 0:00:34]} b6 {[%emt 0:38:19]} 20. Rac1 {[%emt 0:09:11]} Rxd1+ {[%emt 0:00:00]} 21. Rxd1 {[%emt 0:00:12]} Rc8 {[%emt 0:00:00]} 22. b3 {[%emt 0:00:28]} Kf8 {[%emt 0:00:00]} 23. a4 {[%emt 0:00:28]} Nc6 {[%emt 0:00:00]} 24. Bxc6 {[%emt 0:05:02]} Rxc6 {[%emt 0:00:00]} 25. Rd8+ {[%emt 0:00:55]} Ke7 {[%emt 0:00:00]} 26. Ra8 {[%emt 0:00:17]} Rc7 {[%emt 0:00:00]} 27. f4 {[%emt 0:02:16]} exf4 {[%emt 0:00:00]} 28. gxf4 {[%emt 0:00:02]} g6 {[%emt 0:00:00]} 29. Kf2 {[%emt 0:00:42]} Kd6 {[%emt 0:00:00]} 30. Kf3 {[%emt 0:04:16]} Kc5 {[%emt 0:00:00]} 31. Ke4 {[%emt 0:00:50]} Rd7 {[%emt 0:00:00]} 32. f5 {[%emt 0:14:29]} gxf5+ {[%emt 0:00:00]} 33. Nxf5 {[%emt 0:00:15]} h5 {[%emt 0:00:00]} 34. a5 {[%emt 0:04:19]} bxa5 {[%emt 0:00:56]} 35. Rb8 {[%emt 0:00:28]} a6 {[%emt 0:02:13]} 36. Ke5 {[%emt 0:03:19]} Rd3 {[%emt 0:01:26]} 37. Rb7 {[%emt 0:04:02]} Rh3 {[%emt 0:02:03]} 38. Nd6 {[%emt 0:00:39]} Kc6 {[%emt 0:01:17]} 39. Ra7 {[%emt 0:00:25]} Re3+ {[%emt 0:00:43]} 40. Kd4 {[%emt 0:00:30]} Rxb3 {[%emt 0:00:33]} 41. Rxa6+ {[%emt 0:00:13]} Kd7 {[%emt 0:00:32]} 42. c5 {[%emt 0:00:16]} Rb4+ {[%emt 0:01:02]} 43. Ke5 {[%emt 0:00:02]} a4 {[%emt 0:00:32]} 44. c6+ {[%emt 0:01:04]} Kc7 {[%emt 0:00:25]} 45. Ne8+ {[%emt 0:00:17]} Kb8 {[%emt 0:00:37]} 46. Kd6 {[%emt 0:01:15]} Rd4+ {[%emt 0:00:08]} 47. Kc5 {[%emt 0:00:12]} Rc4+ {[%emt 0:00:23]} 48. Kb5 {[%emt 0:00:36]} Rxh4 {[%emt 0:00:46]} 49. c7+ {[%emt 0:01:03]} Kb7 {[%emt 0:00:51]} 50. Rb6+ {[%emt 0:00:17]} Ka7 {[%emt 0:00:02]} 51. Rxe6 {[%emt 0:00:16]} 1-0

[Event "2nd Cambridge Open 2024"]
[Site "Cambridge"]
[Date "2024.02.23"]
[Round "7.21"]
[White "Sivanandan, Bodhana"]
[Black "Borsos, Bogdan"]
[Result "1/2-1/2"]
[ECO "B06"]
[WhiteElo "1856"]
[BlackElo "2094"]
[Annotator "RC"]
[PlyCount "150"]
[EventDate "2024.02.18"]
[EventType "swiss"]
[EventCountry "ENG"]
[SourceTitle "playchess.com"]
[Source "ChessBase"]
[SourceQuality "1"]
[TimeControl "5400+30"]

1. e4 {[%emt 1:31:00]} g6 {[%emt 0:00:09]} 2. d4 {[%emt 0:00:00]} Bg7 {[%emt 0:00:07]} 3. Nc3 {[%emt 0:00:00]} a6 {[%emt 0:00:13]} 4. Be3 {[%emt 0:00:00]} d6 {[%emt 0:00:11]} 5. Qd2 {[%emt 0:00:00]} Nd7 {[%emt 0:00:15]} 6. Nf3 {[%emt 0:00:00]} b5 {[%emt 0:00:29]} 7. Bd3 {[%emt 0:00:00]} Bb7 {[%emt 0:00:09]} 8. a3 {[%emt 0:00:00]} Rc8 {[%emt 0:00:35]} 9. Ne2 {[%emt 0:00:00]} c5 {[%emt 0:00:52]} 10. c3 {[%emt 0:00:00]} Ngf6 {[%emt 0:02:05]} 11. Ng3 {[%emt 0:00:00]} e5 {[%emt 0:04:39]} 12. d5 {[%emt 0:00:00]} c4 {[%emt 0:00:16]} 13. Bc2 {[%emt 0:00:00]} Nc5 {[%emt 0:01:44]} 14. Bxc5 {[%emt 0:00:00]} Rxc5 {[%emt 0:00:10]} 15. a4 {[%emt 0:00:00]} O-O {[%emt 0:00:16]} 16. O-O {[%emt 0:00:00]} Qb6 {[%emt 0:01:30]} 17. Ra2 {[%emt 0:00:00]} Rcc8 {[%emt 0:05:14]} 18. axb5 {[%emt 0:00:00]} axb5 {[%emt 0:00:07]} 19. Rfa1 {[%emt 0:00:00]} Ra8 {[%emt 0:00:19]} 20. Nf1 {[%emt 0:00:00]} Rxa2 {[%emt 0:04:13]} 21. Rxa2 {[%emt 0:00:00]} Ng4 {[%emt 0:00:40]} 22. h3 {[%emt 0:00:00]} Bh6 {[%emt 0:00:12]} 23. Qe2 {[%emt 0:00:00]} Nf6 {[%emt 0:00:11]} 24. Ne3 {[%emt 0:00:00]} Bxe3 {[%emt 0:05:47]} 25. Qxe3 {[%emt 0:00:00]} Qxe3 {[%emt 0:00:10]} 26. fxe3 {[%emt 0:00:00]} Ra8 {[%emt 0:00:03]} 27. Rxa8+ {[%emt 0:00:00]} Bxa8 {[%emt 0:00:05]} 28. Nd2 {[%emt 0:00:00]} Bb7 {[%emt 0:00:16]} 29. b4 {[%emt 0:00:00]} Bc8 {[%emt 0:03:46]} 30. Kf2 {[%emt 0:00:00]} Kf8 {[%emt 0:01:15]} 31. Bd1 {[%emt 0:00:00]} Ke7 {[%emt 0:00:30]} 32. Bc2 {[%emt 0:00:00]} Nd7 {[%emt 0:02:29]} 33. g4 {[%emt 0:00:00]} Nb6 {[%emt 0:02:00]} 34. Nb1 {[%emt 0:00:00]} Bd7 {[%emt 0:02:59]} 35. Kf3 {[%emt 0:01:17]} Kf6 {[%emt 0:08:44]} 36. h4 {[%emt 0:04:04]} Kg7 {[%emt 0:00:22]} 37. Nd2 {[%emt 0:05:07]} h6 {[%emt 0:02:09]} 38. Nb1 {[%emt 0:01:30]} Be8 {[%emt 0:01:06]} 39. Kf2 {[%emt 0:01:14]} Kf8 {[%emt 0:04:42]} 40. Kf3 {[%emt 0:01:02]} Ke7 {[%emt 0:00:09]} 41. Kf2 {[%emt 0:00:11]} Nd7 {[%emt 0:00:41]} 42. Nd2 {[%emt 0:00:20]} Nf6 {[%emt 0:00:34]} 43. Bd1 {[%emt 0:00:13]} Bd7 {[%emt 0:00:25]} 44. Kg3 {[%emt 0:00:04]} Bc8 {[%emt 0:00:16]} 45. Bf3 {[%emt 0:01:07]} Nd7 {[%emt 0:03:24]} 46. Nb1 {[%emt 0:01:15]} Nb6 {[%emt 0:00:35]} 47. Bg2 {[%emt 0:01:08]} Bd7 {[%emt 0:06:01]} 48. Bf3 {[%emt 0:00:36]} Be8 {[%emt 0:00:52]} 49. Bg2 {[%emt 0:00:38]} Bd7 {[%emt 0:02:09]} 50. Bf3 {[%emt 0:00:07]} Bc8 {[%emt 0:00:15]} 51. Bg2 {[%emt 0:00:19]} f6 {[%emt 0:01:38]} 52. Bf3 {[%emt 0:00:41]} Bd7 {[%emt 0:00:46]} 53. Bg2 {[%emt 0:00:08]} Kd8 {[%emt 0:06:36]} 54. Bf3 {[%emt 0:00:41]} Be8 {[%emt 0:01:58]} 55. Bg2 {[%emt 0:00:09]} Ke7 {[%emt 0:05:40]} 56. Bf3 {[%emt 0:00:06]} g5 {[%emt 0:00:21]} 57. h5 {[%emt 0:00:09]} Kd8 {[%emt 0:01:45]} 58. Kf2 {[%emt 0:01:14]} Kc7 {[%emt 0:00:15]} 59. Ke1 {[%emt 0:01:17]} Kb7 {[%emt 0:00:19]} 60. Kd2 {[%emt 0:00:10]} Bf7 {[%emt 0:00:48]} 61. Ke1 {[%emt 0:01:37]} Bg8 {[%emt 0:00:23]} 62. Ke2 {[%emt 0:01:17]} Bh7 {[%emt 0:01:59]} 63. Na3 {[%emt 0:00:24]} Ka6 {[%emt 0:00:10]} 64. Kd2 {[%emt 0:00:11]} Na4 {[%emt 0:01:08]} 65. Kc2 {[%emt 0:00:26]} Nb6 {[%emt 0:00:25]} 66. Kd2 {[%emt 0:00:05]} Na8 {[%emt 0:00:44]} 67. Kc1 {[%emt 0:00:45]} Nb6 {[%emt 0:02:26]} 68. Kd2 {[%emt 0:00:04]} Nd7 {[%emt 0:00:10]} 69. Ke1 {[%emt 0:00:36]} Kb6 {[%emt 0:01:52]} 70. Kd2 {[%emt 0:00:06]} Nb8 {[%emt 0:00:39]} 71. Ke1 {[%emt 0:00:51]} Na6 {[%emt 0:00:24]} 72. Kd2 {[%emt 0:00:12]} Nc7 {[%emt 0:00:08]} 73. Ke1 {[%emt 0:00:34]} Bg8 {[%emt 0:00:07]} 74. Kd2 {[%emt 0:00:40]} Bf7 {[%emt 0:00:29]} 75. Nc2 {[%emt 0:00:11]} Ne8 {[%emt 0:04:09]} 1/2-1/2

[Event "2nd Cambridge Open 2024"]
[Site "Cambridge"]
[Date "2024.02.23"]
[Round "7.22"]
[White "McClement, Andrew"]
[Black "Asgarova, Turan"]
[Result "1-0"]
[ECO "B54"]
[WhiteElo "2223"]
[BlackElo "1988"]
[Annotator "RC"]
[PlyCount "61"]
[EventDate "2024.02.18"]
[EventType "swiss"]
[EventCountry "ENG"]
[SourceTitle "playchess.com"]
[Source "ChessBase"]
[SourceQuality "1"]
[TimeControl "5400+30"]

1. e4 {[%emt 0:00:02]} c5 {[%emt 0:00:14]} 2. Nf3 {[%emt 0:00:03]} e6 {[%emt 0:00:11]} 3. d4 {[%emt 0:00:03]} cxd4 {[%emt 0:00:06]} 4. Nxd4 {[%emt 0:00:02]} Nc6 {[%emt 0:00:11]} 5. Nc3 {[%emt 0:00:03]} d6 {[%emt 0:00:13]} 6. g4 {[%emt 0:00:05]} a6 {[%emt 0:01:46]} 7. Be3 {[%emt 0:06:57]} Be7 {[%emt 0:05:33]} 8. Rg1 {[%emt 0:01:27]} Qc7 {[%emt 0:04:28]} 9. g5 {[%emt 0:11:36]} Ne5 {[%emt 0:06:21]} 10. Qe2 {[%emt 0:00:47]} b5 {[%emt 0:08:49]} 11. f4 {[%emt 0:02:30]} Nc4 {[%emt 0:06:33]} 12. O-O-O {[%emt 0:01:15]} Nxe3 {[%emt 0:03:26]} 13. Qxe3 {[%emt 0:00:15]} Bd7 {[%emt 0:03:36]} 14. a3 {[%emt 0:06:41]} Qc5 {[%emt 0:08:25]} 15. Qg3 {[%emt 0:18:07]} b4 {[%emt 0:03:19]} 16. Nb3 {[%emt 0:00:28]} Qb6 {[%emt 0:00:27]} 17. axb4 {[%emt 0:01:09]} Qxb4 {[%emt 0:00:18]} 18. Rd4 {[%emt 0:01:18]} Qb6 {[%emt 0:01:58]} 19. Na4 {[%emt 0:03:34]} Qa7 {[%emt 0:01:04]} 20. Be2 {[%emt 0:08:34]} e5 {[%emt 0:10:44]} 21. fxe5 {[%emt 0:01:37]} dxe5 {[%emt 0:00:49]} 22. Rxd7 {[%emt 0:06:39]} Kxd7 {[%emt 0:03:39]} 23. Rd1+ {[%emt 0:00:02]} Ke8 {[%emt 0:00:51]} 24. Bc4 {[%emt 0:05:43]} Rd8 {[%emt 0:04:31]} 25. Rf1 {[%emt 0:02:18]} Bd6 {[%emt 0:04:15]} 26. Rxf7 {[%emt 0:04:23]} Rd7 {[%emt 0:06:01]} 27. Rf1 {[%emt 0:01:02]} Rc7 {[%emt 0:03:50]} 28. Qd3 {[%emt 0:01:06]} Bb4 {[%emt 0:02:40]} 29. Bxa6 {[%emt 0:02:57]} Rd7 {[%emt 0:07:49]} 30. Bb5 {[%emt 0:00:19]} Ne7 {[%emt 0:00:22]} 31. Nb6 {[%emt 0:02:15]} 1-0

[Event "2nd Cambridge Open 2024"]
[Site "Cambridge"]
[Date "2024.02.23"]
[Round "7.23"]
[White "Iyengar, Ilya"]
[Black "Karamsetty, Jeevan"]
[Result "0-1"]
[ECO "E62"]
[WhiteElo "1972"]
[BlackElo "2211"]
[Annotator "RC"]
[PlyCount "66"]
[EventDate "2024.02.18"]
[EventType "swiss"]
[EventCountry "ENG"]
[SourceTitle "playchess.com"]
[Source "ChessBase"]
[SourceQuality "1"]
[TimeControl "5400+30"]

1. d4 {[%emt 0:17:26]} d6 {[%emt 0:00:07]} 2. g3 {[%emt 0:00:23]} g6 {[%emt 0:00:12]} 3. Bg2 {[%emt 0:00:16]} Bg7 {[%emt 0:00:06]} 4. Nf3 {[%emt 0:02:22]} Nf6 {[%emt 0:00:19]} 5. c4 {[%emt 0:00:46]} O-O {[%emt 0:00:08]} 6. O-O {[%emt 0:00:12]} c6 {[%emt 0:00:05]} 7. Nc3 {[%emt 0:00:22]} Bf5 {[%emt 0:00:06]} 8. Nh4 {[%emt 0:02:20]} Be6 {[%emt 0:00:26]} 9. b3 {[%emt 0:05:17]} d5 {[%emt 0:00:23]} 10. c5 {[%emt 0:02:20]} Qc8 {[%emt 0:09:23]} 11. Re1 {[%emt 0:02:28]} Bh3 {[%emt 0:01:00]} 12. Bh1 {[%emt 0:00:41]} Rd8 {[%emt 0:16:12]} 13. Bb2 {[%emt 0:11:38]} Nbd7 {[%emt 0:14:48]} 14. Qc2 {[%emt 0:07:36]} e5 {[%emt 0:05:52]} 15. dxe5 {[%emt 0:02:09]} Nxe5 {[%emt 0:02:18]} 16. Rad1 {[%emt 0:04:05]} Qe6 {[%emt 0:01:26]} 17. Nf3 {[%emt 0:14:04]} Nxf3+ {[%emt 0:05:51]} 18. Bxf3 {[%emt 0:08:50]} Ng4 {[%emt 0:03:31]} 19. Na4 {[%emt 0:08:39]} d4 {[%emt 0:01:22]} 20. Qe4 {[%emt 0:03:14]} Ne5 {[%emt 0:01:17]} 21. Bg2 {[%emt 0:01:30]} Bxg2 {[%emt 0:04:00]} 22. Kxg2 {[%emt 0:01:19]} f5 {[%emt 0:01:54]} 23. Qf4 {[%emt 0:01:21]} Nf7 {[%emt 0:10:59]} 24. Qc1 {[%emt 0:02:18]} Rd7 {[%emt 0:01:19]} 25. Kg1 {[%emt 0:00:49]} Rad8 {[%emt 0:00:46]} 26. Qa1 {[%emt 0:00:26]} Qe4 {[%emt 0:00:52]} 27. Rd2 {[%emt 0:00:36]} Ng5 {[%emt 0:00:17]} 28. h4 {[%emt 0:00:30]} Nh3+ {[%emt 0:00:12]} 29. Kh2 {[%emt 0:00:07]} Nxf2 {[%emt 0:00:08]} 30. Rf1 {[%emt 0:00:53]} Ng4+ {[%emt 0:00:59]} 31. Kh3 {[%emt 0:00:08]} Ne3 {[%emt 0:00:13]} 32. Rf3 {[%emt 0:00:25]} Be5 {[%emt 0:00:08]} 33. Qg1 {[%emt 0:00:44]} Qg4+ {[%emt 0:00:07]} 0-1

[Event "2nd Cambridge Open 2024"]
[Site "Cambridge"]
[Date "2024.02.23"]
[Round "7.24"]
[White "Myall, Ivan J"]
[Black "Abhyuday, Santhosh"]
[Result "0-1"]
[ECO "A45"]
[WhiteElo "1951"]
[BlackElo "2058"]
[Annotator "NA RC"]
[PlyCount "60"]
[EventDate "2024.02.18"]
[EventType "swiss"]
[EventCountry "ENG"]
[SourceTitle "playchess.com"]
[Source "ChessBase"]
[SourceQuality "1"]
[TimeControl "5400+30"]

1. d4 {[%emt 0:00:03]} Nf6 {[%emt 0:09:52]} 2. Bf4 {[%emt 0:00:09]} g6 {[%emt 0:00:08]} 3. Nc3 {[%emt 0:00:14]} d5 {[%emt 0:00:08]} 4. h4 {[%emt 0:00:28]} Bg7 {[%emt 0:00:07]} 5. e3 {[%emt 0:00:36]} O-O {[%emt 0:00:17]} 6. Be2 {[%emt 0:00:14]} c5 {[%emt 0:00:50]} 7. h5 {[%emt 0:00:40]} Nc6 {[%emt 0:00:35]} 8. h6 {[%emt 0:02:13]} Bh8 {[%emt 0:00:06]} 9. Nf3 {[%emt 0:00:06]} cxd4 {[%emt 0:01:11]} 10. exd4 {[%emt 0:00:13]} Ne4 {[%emt 0:03:01]} 11. O-O {[%emt 0:08:41]} f6 {[%emt 0:04:53]} 12. Be3 {[%emt 0:04:12]} Nxc3 {[%emt 0:07:50]} 13. bxc3 {[%emt 0:00:06]} Be6 {[%emt 0:05:13]} 14. Rb1 {[%emt 0:01:14]} Qd7 {[%emt 0:01:47]} 15. Nd2 {[%emt 0:05:42]} Rac8 {[%emt 0:03:32]} 16. c4 {[%emt 0:05:39]} dxc4 {[%emt 0:00:23]} 17. Ne4 {[%emt 0:03:10]} b6 {[%emt 0:01:08]} 18. Nc3 {[%emt 0:06:29]} f5 {[%emt 0:01:35]} 19. Nb5 {[%emt 0:10:01]} f4 {[%emt 0:02:38]} 20. d5 {[%emt 0:01:41]} Qxd5 {[%emt 0:00:40]} 21. Qxd5 {[%emt 0:01:07]} Bxd5 {[%emt 0:55:06]} 22. Bd2 {[%emt 0:00:50]} Rcd8 {[%emt 0:00:00]} 23. Bc3 {[%emt 0:02:12]} Ne5 {[%emt 0:00:00]} 24. Bb4 {[%emt 0:03:01]} f3 {[%emt 0:00:00]} 25. gxf3 {[%emt 0:00:08]} Nxf3+ {[%emt 0:00:00]} 26. Bxf3 {[%emt 0:01:03]} Bxf3 {[%emt 0:00:00]} 27. Bc3 {[%emt 0:16:12]} Rd5 {[%emt 0:00:00]} 28. Kh2 {[%emt 0:00:12]} Rh5+ {[%emt 0:00:00]} 29. Kg3 {[%emt 0:00:12]} Rg5+ {[%emt 0:00:00]} 30. Kh4 {[%emt 0:01:03]} Rg4+ {[%emt 0:00:00]} 0-1